fUSD/lending_fUSD_20250823
["ID","MTS","AMOUNT","RATE_DAILY","PERIOD"]
[380967270,1755912860705,-152.0,0.00021091,6]
[380967271,1755912860714,-733.0,0.00021095,2]
[380967272,1755912860723,-1367.0,0.00021095,2]
[380967273,1755912860733,-2066.0,0.00021095,2]
[380967274,1755912860742,-500.0,0.00021096,2]
[380967275,1755912860751,-417.0,0.000211,2]
[380967276,1755912860761,-11228.44,0.000211,2]
[380967277,1755912860770,-2400.0,0.00021274,2]
[380967278,1755912860779,-3162.0,0.00021283,2]
[380967279,1755912860788,-755.43708518,0.00021369,2]
[380967280,1755912860798,-1367.0,0.00021369,2]
[380967281,1755912860807,-2066.0,0.00021369,2]
[380967282,1755912860816,-500.0,0.0002137,2]
[380967283,1755912860826,-6229.06,0.0002137,2]
[380967284,1755912860835,-550.0,0.0002137,2]
[380967285,1755912860845,-174.61919141,0.0002137,2]
[380967286,1755912860854,-11713.99,0.000214,7]
[380967287,1755912860864,-347.34,0.00021465,2]
[380967288,1755912860873,-300.0,0.00021465,2]
[380967289,1755912860883,-351.81,0.00021465,2]
[380967290,1755912860892,-151.17,0.00021465,2]
[380967291,1755912860902,-166.91,0.00021469,2]
[380967292,1755912860911,-217.47692407,0.000215,2]
[380967293,1755912860920,-200.0,0.0002151,7]
[380967294,1755912860929,-21028.50778795,0.00021535,2]
[380967295,1755912860939,-166.04,0.00021581,2]
[380967296,1755912860948,-166.04,0.00021581,2]
[380967297,1755912860958,-600.0,0.00021616,2]
[380967298,1755912860973,-1376.47239009,0.00021643,2]
[380967299,1755912860983,-2066.0,0.00021643,2]
[380967300,1755912860992,-500.0,0.00021643,2]
[380967301,1755912861002,-152.0,0.00021695,7]
[380967302,1755912861011,-500.0,0.00021744,2]
[380967303,1755912861021,-1000.0,0.00021744,2]
[380967304,1755912861030,-301.18,0.00021866,2]
[380967305,1755912861040,-2000.0,0.000219,30]
[380967306,1755912861049,-200.0,0.0002191,7]
[380967307,1755912861059,-500.0,0.00021917,2]
[380967308,1755912861069,-500.0,0.00021917,2]
[380967309,1755912861078,-500.0,0.00021917,2]
[380967310,1755912861088,-500.0,0.00021917,2]
[380967311,1755912861098,-500.0,0.00021917,2]
[380967312,1755912861107,-500.0,0.00021917,2]
[380967313,1755912861119,-500.0,0.00021917,2]
[380967314,1755912861128,-500.0,0.00021917,2]
[380967315,1755912861137,-500.0,0.00021917,2]
[380967316,1755912861147,-500.0,0.00021917,2]
[380967317,1755912861156,-642.78570884,0.00021917,2]
[380967318,1755912861166,-2066.20900591,0.00021917,2]
[380967319,1755912861176,-500.0,0.00021917,2]
[380967320,1755912861187,-251.357293,0.00021918,2]
[380967321,1755912861196,-251.357293,0.00021918,2]
[380967322,1755912861205,-251.357293,0.00021918,2]
[380967323,1755912861214,-251.357293,0.00021918,2]
[380967324,1755912861224,-251.357293,0.00021918,2]
[380967325,1755912861233,-251.357293,0.00021918,2]
[380967326,1755912861243,-251.357293,0.00021918,2]
[380967327,1755912861253,-251.357293,0.00021918,2]
[380967328,1755912861263,-251.357293,0.00021918,2]
[380967329,1755912861272,-251.357293,0.00021918,2]
[380967330,1755912861282,-251.357293,0.00021918,2]
[380967331,1755912861291,-251.357293,0.00021918,2]
[380967332,1755912861301,-251.357293,0.00021918,2]
[380967333,1755912861310,-251.357293,0.00021918,2]
[380967334,1755912861319,-251.357293,0.00021918,2]
[380967335,1755912861329,-251.357293,0.00021918,2]
[380967336,1755912861340,-251.357293,0.00021918,2]
[380967337,1755912861349,-251.357293,0.00021918,2]
[380967338,1755912861363,-251.357293,0.00021918,2]
[380967339,1755912861373,-251.35729,0.00021918,2]
[380967340,1755912861382,-5000.0,0.00021918,2]
[380967341,1755912861391,-415.559117,0.00021918,2]
[380967342,1755912861401,-415.559117,0.00021918,2]
[380967343,1755912861412,-415.559117,0.00021918,2]
[380967344,1755912861422,-415.559117,0.00021918,2]
[380967345,1755912861436,-415.559117,0.00021918,2]
[380967346,1755912861446,-415.559117,0.00021918,2]
[380967347,1755912861456,-415.559117,0.00021918,2]
[380967348,1755912861465,-415.559117,0.00021918,2]
[380967349,1755912861475,-415.559117,0.00021918,2]
[380967350,1755912861488,-415.559117,0.00021918,2]
[380967351,1755912861499,-415.559117,0.00021918,2]
[380967352,1755912861509,-415.559117,0.00021918,2]
[380967353,1755912861519,-415.559117,0.00021918,2]
[380967354,1755912861530,-415.559117,0.00021918,2]
[380967355,1755912861539,-415.559117,0.00021918,2]
[380967356,1755912861549,-415.559117,0.00021918,2]
[380967357,1755912861559,-415.559117,0.00021918,2]
[380967358,1755912861568,-415.559117,0.00021918,2]
[380967359,1755912861578,-415.559117,0.00021918,2]
[380967360,1755912861587,-415.559115,0.00021918,2]
[380967361,1755912861597,-289.904491,0.00021918,2]
[380967362,1755912861607,-289.904491,0.00021918,2]
[380967363,1755912861616,-289.904491,0.00021918,2]
[380967364,1755912861626,-289.904491,0.00021918,2]
[380967365,1755912861636,-289.904491,0.00021918,2]
[380967366,1755912861647,-289.904491,0.00021918,2]
[380967367,1755912861656,-289.904491,0.00021918,2]
[380967368,1755912861666,-289.904491,0.00021918,2]
[380967369,1755912861676,-289.904491,0.00021918,2]
[380967370,1755912861686,-289.904491,0.00021918,2]
[380967371,1755912861696,-289.904491,0.00021918,2]
[380967372,1755912861706,-289.904491,0.00021918,2]
[380967373,1755912861716,-289.904491,0.00021918,2]
[380967374,1755912861725,-289.904491,0.00021918,2]
[380967375,1755912861735,-289.904491,0.00021918,2]
[380967376,1755912861744,-289.904491,0.00021918,2]
[380967377,1755912861754,-289.904491,0.00021918,2]
[380967378,1755912861764,-289.904491,0.00021918,2]
[380967379,1755912861780,-289.904491,0.00021918,2]
[380967380,1755912861790,-289.904486,0.00021918,2]
[380967381,1755912861800,-1315.229156,0.00021918,2]
[380967382,1755912861810,-1315.229156,0.00021918,2]
[380967383,1755912862013,-1315.229156,0.00021918,2]
[380967384,1755912862027,-1315.229156,0.00021918,2]
[380967385,1755912862037,-1315.229156,0.00021918,2]
[380967386,1755912862049,-1315.229156,0.00021918,2]
[380967387,1755912862060,-1315.229156,0.00021918,2]
[380967388,1755912862070,-1315.229156,0.00021918,2]
[380967389,1755912862080,-1315.229156,0.00021918,2]
[380967390,1755912862090,-1315.229156,0.00021918,2]
[380967391,1755912862099,-1315.229156,0.00021918,2]
[380967392,1755912862109,-1315.229156,0.00021918,2]
[380967393,1755912862119,-1315.229156,0.00021918,2]
[380967394,1755912862128,-1315.229156,0.00021918,2]
[380967395,1755912862138,-1315.229156,0.00021918,2]
[380967396,1755912862147,-1315.229156,0.00021918,2]
[380967397,1755912862156,-1315.229156,0.00021918,2]
[380967398,1755912862166,-1315.229156,0.00021918,2]
[380967399,1755912862178,-1315.229156,0.00021918,2]
[380967400,1755912862187,-1315.229155,0.00021918,2]
[380967401,1755912862198,-650.0,0.00021918,2]
[380967402,1755912862208,-150.0,0.00021918,2]
[380967403,1755912862219,-159.90996042,0.00021918,2]
[380967404,1755912862229,-150.0,0.00021918,2]
[380967405,1755912862240,-200.0,0.00021918,2]
[380967406,1755912862249,-151.0,0.00021918,2]
[380967407,1755912862260,-520.33893302,0.00021918,2]
[380967408,1755912862270,-500.0,0.00021918,2]
[380967409,1755912862279,-150.0,0.00021918,2]
[380967410,1755912862289,-181.08010149,0.00021918,2]
[380967411,1755912862298,-500.0,0.00021919,2]
[380967412,1755912862307,-500.0,0.00021919,2]
[380967413,1755912862317,-500.0,0.00021919,2]
[380967414,1755912862326,-500.0,0.00021919,2]
[380967415,1755912862337,-557.69625851,0.00021919,2]
[380967416,1755912862346,-9756.40473557,0.0002192,4]
[380967417,1755912862356,-9756.40473557,0.0002192,4]
[380967418,1755912862366,-9756.40473557,0.0002192,4]
[380967419,1755912862376,-9756.40473557,0.0002192,4]
[380967420,1755912862385,-9756.40473557,0.0002192,4]
[380967421,1755912862395,-9756.40473557,0.0002192,4]
[380967422,1755912862404,-9756.40473557,0.0002192,4]
[380967423,1755912862413,-9756.40473557,0.0002192,4]
[380967424,1755912862423,-9756.40473557,0.0002192,4]
[380967425,1755912862435,-9756.40473557,0.0002192,4]
[380967426,1755912862445,-9756.40473557,0.0002192,4]
[380967427,1755912862454,-9756.40473557,0.0002192,4]
[380967428,1755912862465,-9756.40473557,0.0002192,4]
[380967429,1755912862475,-9756.40473557,0.0002192,4]
[380967430,1755912862484,-9756.40473557,0.0002192,4]
[380967431,1755912862494,-9756.40473557,0.0002192,4]
[380967432,1755912862504,-9756.40473557,0.0002192,4]
[380967433,1755912862514,-9756.40473557,0.0002192,4]
[380967434,1755912862523,-9756.40473557,0.0002192,4]
[380967435,1755912862533,-9756.4,0.0002192,4]
[380967436,1755912862543,-7875.20411973,0.0002192,4]
[380967437,1755912862552,-7875.20411973,0.0002192,4]
[380967438,1755912862562,-7875.20411973,0.0002192,4]
[380967439,1755912862571,-7875.20411973,0.0002192,4]
[380967440,1755912862581,-7875.20411973,0.0002192,4]
[380967441,1755912862591,-7875.20411973,0.0002192,4]
[380967442,1755912862600,-7875.20411973,0.0002192,4]
[380967443,1755912862610,-7875.20411973,0.0002192,4]
[380967444,1755912862619,-7875.20411973,0.0002192,4]
[380967445,1755912862639,-7875.20411973,0.0002192,4]
[380967446,1755912862650,-7875.20411973,0.0002192,4]
[380967447,1755912862660,-7875.20411973,0.0002192,4]
[380967448,1755912862670,-7875.20411973,0.0002192,4]
[380967449,1755912862680,-7875.20411973,0.0002192,4]
[380967450,1755912862690,-7875.20411973,0.0002192,4]
[380967451,1755912862700,-7875.20411973,0.0002192,4]
[380967452,1755912862710,-7875.20411973,0.0002192,4]
[380967453,1755912862720,-7875.20411973,0.0002192,4]
[380967454,1755912862730,-7875.20411973,0.0002192,4]
[380967455,1755912862740,-7875.2,0.0002192,4]
[380967456,1755912862751,-3474.57,0.00021945,30]
[380967457,1755912862761,-15643.59728563,0.0002199,2]
[380967458,1755912862771,-1000.0,0.00021999,2]
[380967459,1755912862781,-4950.0,0.00022,2]
[380967460,1755912862792,-2110.42923974,0.00022,30]
[380967461,1755912862801,-473.0,0.00022,2]
[380967462,1755912862812,-778.04396297,0.00022,7]
[380967463,1755912862822,-11409.30287652,0.00022,7]
[380967464,1755912862833,-820.19519326,0.00022,15]
[380967465,1755912862843,-160.97,0.00022,2]
[380967466,1755912862854,-227.0,0.00022,2]
[380967467,1755912862864,-4000.0,0.00022,4]
[380967468,1755912862875,-369.43730908,0.0002205,30]
[380967469,1755912862885,-200.0,0.000221,7]
[380967470,1755912862897,-484.17952827,0.000221,2]
[380967471,1755912862907,-12717.38,0.000221,2]
[380967472,1755912862918,-235.29116237,0.0002211,2]
[380967473,1755912862928,-600.0,0.00022164,2]
[380967474,1755912862938,-500.0,0.00022191,2]
[380967475,1755912862948,-500.0,0.00022192,2]
[380967476,1755912862958,-151547.0,0.000222,2]
[380967477,1755912862968,-539.09,0.00022287,2]
[380967478,1755912862978,-408.42,0.00022287,2]
[380967479,1755912862987,-173.67,0.00022287,2]
[380967480,1755912862999,-173.67,0.00022287,2]
[380967481,1755912863009,-152.0,0.00022298,8]
[380967482,1755912863023,-203.65300956,0.00022298,5]
[380967483,1755912863033,-1608.82,0.00022398,2]
[380967484,1755912863043,-359.76179104,0.00022456,2]
[380967485,1755912863054,-160.0,0.00022456,2]
[380967486,1755912863065,-309.29654756,0.00022456,2]
[380967487,1755912863075,-600.0,0.00022465,2]
[380967488,1755912863087,-600.0,0.00022465,2]
[380967489,1755912863096,-661.8381409,0.00022465,2]
[380967490,1755912863106,-500.0,0.00022465,2]
[380967491,1755912863117,-151.0,0.00022466,2]
[380967492,1755912863127,-189.85832631,0.00022466,2]
[380967493,1755912863137,-404.42763861,0.00022466,2]
[380967494,1755912863148,-187.78006525,0.00022466,2]
[380967495,1755912863158,-34745.23872968,0.000225,2]
[380967496,1755912863168,-200.0,0.0002251,7]
[380967497,1755912863178,-74207.05361444,0.000226,7]
[380967498,1755912865069,-719.1620727,0.00010997,2]
[380967499,1755912865079,-180.825234,0.00011,2]
[380967500,1755912865089,-180.825234,0.00011,2]
[380967501,1755912865099,-400.0,0.00013698,2]
[380967502,1755912865108,-180.825234,0.00013698,2]
[380967503,1755912865118,-400.0,0.00013698,2]
[380967504,1755912865128,-400.0,0.00013698,2]
[380967505,1755912865138,-180.825234,0.00013698,2]
[380967506,1755912865147,-400.0,0.00013698,2]
[380967507,1755912865157,-400.0,0.00013698,2]
[380967508,1755912865167,-989.84,0.00013698,2]
[380967509,1755912865178,-400.0,0.00013698,2]
[380967510,1755912865188,-400.0,0.00013698,2]
[380967511,1755912865197,-180.825234,0.00013972,2]
[380967512,1755912865208,-400.0,0.00013972,2]
[380967513,1755912865218,-400.0,0.00013972,2]
[380967514,1755912865228,-400.0,0.00013972,2]
[380967515,1755912865237,-180.825234,0.00013972,2]
[380967516,1755912865248,-400.0,0.00013972,2]
[380967517,1755912865257,-400.0,0.00013972,2]
[380967518,1755912865267,-719.82,0.00014245,2]
[380967519,1755912865277,-400.0,0.00014246,2]
[380967520,1755912865286,-400.0,0.00014246,2]
[380967521,1755912865296,-180.825234,0.00014246,2]
[380967522,1755912865306,-400.0,0.00014246,2]
[380967523,1755912865316,-400.0,0.00014246,2]
[380967524,1755912865325,-400.0,0.00014246,2]
[380967525,1755912865335,-180.825234,0.00014246,2]
[380967526,1755912865344,-400.0,0.00014246,2]
[380967527,1755912865355,-600.29,0.0001452,2]
[380967528,1755912865364,-400.0,0.0001452,2]
[380967529,1755912865374,-307.35662432,0.0001452,2]
[380967530,1755912865406,-400.0,0.00014246,2]
[380967531,1755912865416,-92.64337568,0.0001452,2]
[380967532,1755912865431,-180.825234,0.0001452,2]
[380967533,1755912865441,-400.0,0.0001452,2]
[380967534,1755912865455,-400.0,0.0001452,2]
[380967535,1755912865465,-400.0,0.0001452,2]
[380967536,1755912865475,-180.825234,0.0001452,2]
[380967537,1755912865486,-403.10939653,0.0001452,2]
[380967538,1755912865497,-600.29,0.00014794,2]
[380967539,1755912865507,-400.0,0.00014794,2]
[380967540,1755912865518,-400.0,0.00014794,2]
[380967541,1755912865534,-400.0,0.00014794,2]
[380967542,1755912865543,-400.0,0.00014794,2]
[380967543,1755912865553,-400.0,0.00014794,2]
[380967544,1755912865563,-402.41519156,0.00015068,2]
[380967545,1755912865574,-150.89790594,0.00015068,2]
[380967546,1755912865584,-600.29,0.00015068,2]
[380967547,1755912865594,-400.0,0.00015068,2]
[380967548,1755912865605,-403.51375254,0.00015068,2]
[380967549,1755912865615,-500.0,0.00015068,2]
[380967550,1755912865624,-400.0,0.00015068,2]
[380967551,1755912865634,-500.0,0.00015342,2]
[380967552,1755912865645,-849.11,0.00015342,2]
[380967553,1755912865654,-600.29,0.00015342,2]
[380967554,1755912865664,-400.0,0.00015342,2]
[380967555,1755912865674,-400.0,0.00015342,2]
[380967556,1755912865684,-1300.0,0.0001552,2]
[380967557,1755912865694,-500.0,0.00015616,2]
[380967558,1755912865705,-849.11,0.00015616,2]
[380967559,1755912865715,-600.29,0.00015616,2]
[380967560,1755912865725,-400.0,0.00015616,2]
[380967561,1755912865735,-508.86814965,0.0001589,2]
[380967562,1755912865746,-849.11,0.0001589,2]
[380967563,1755912865756,-600.29,0.0001589,2]
[380967564,1755912865766,-339.60740839,0.0001589,2]
[380967565,1755912865777,-849.11,0.00016164,2]
[380967566,1755912865786,-600.29,0.00016164,2]
[380967567,1755912865797,-849.11,0.00016438,2]
[380967568,1755912865807,-600.29,0.00016438,2]
[380967569,1755912865818,-849.11,0.00016712,2]
[380967570,1755912865827,-600.29,0.00016712,2]
[380967571,1755912865837,-849.11,0.00016986,2]
[380967572,1755912865847,-600.29,0.00016986,2]
[380967573,1755912865858,-849.11,0.0001726,2]
[380967574,1755912865868,-600.29,0.0001726,2]
[380967575,1755912865878,-849.11,0.00017534,2]
[380967576,1755912865889,-980.7,0.00018356,2]
[380967577,1755912865906,-468.81,0.0001863,2]
[380967578,1755912865922,-980.7,0.0001863,2]
[380967579,1755912865935,-400.0,0.00018904,2]
[380967580,1755912865944,-468.81,0.00018904,2]
[380967581,1755912865955,-980.7,0.00018904,2]
[380967582,1755912865964,-400.0,0.00019178,2]
[380967583,1755912865974,-468.81,0.00019178,2]
[380967584,1755912865985,-980.7,0.00019178,2]
[380967585,1755912865995,-627.98,0.00019452,2]
[380967586,1755912866005,-840.52,0.00019452,2]
[380967587,1755912866015,-400.0,0.00019452,2]
[380967588,1755912866025,-468.81,0.00019452,2]
[380967589,1755912866035,-980.7,0.00019452,2]
[380967590,1755912866045,-153.0,0.00019589,2]
[380967591,1755912866055,-153.0,0.00019589,2]
[380967592,1755912866065,-627.98,0.00019726,2]
[380967593,1755912866075,-840.52,0.00019726,2]
[380967594,1755912866086,-613.21,0.00019726,2]
[380967595,1755912866096,-504.46347479,0.00019726,2]
[380967596,1755912866106,-468.81,0.00019726,2]
[380967597,1755912866115,-464.64455095,0.0002,2]
[380967598,1755912866126,-408.24691501,0.0002,2]
[380967599,1755912866136,-631.49853963,0.0002,2]
[380967600,1755912866146,-628.01380575,0.0002,2]
[380967601,1755912866158,-840.56545079,0.0002,2]
[380967602,1755912866168,-613.2439203,0.0002,2]
[380967603,1755912866178,-468.85886678,0.0002,2]
[380967604,1755912866188,-122860.13638556,0.000226,7]
[380967605,1755912866198,-190.42,0.00022603,2]
[380967606,1755912866208,-1100.05,0.00022603,2]
[380967607,1755912866218,-200.0,0.0002271,7]
[380967608,1755912866229,-512.05579013,0.0002271,2]
[380967609,1755912866239,-600.0,0.00022712,2]
[380967610,1755912866248,-5744.03,0.00022739,4]
[380967611,1755912866258,-500.0,0.00022739,2]
[380967612,1755912866268,-5511.0,0.000228,3]
[380967613,1755912866278,-400.0,0.0002291,7]
[380967614,1755912866288,-844.18806451,0.00023,3]
[380967615,1755912866298,-620.24834142,0.00023,7]
[380967616,1755912866308,-1000.0,0.00023,14]
[380967617,1755912866318,-430.51267312,0.00023,2]
[380967618,1755912866327,-165.0,0.00023,5]
[380967619,1755912866338,-1800.0,0.00023,24]
[380967620,1755912866348,-161.21,0.00023,14]
[380967621,1755912866358,-160.0,0.00023,3]
[380967622,1755912866368,-608.0,0.00023,7]
[380967623,1755912866378,-450.0,0.00023,2]
[380967624,1755912866388,-11228.44,0.00023,7]
[380967625,1755912866398,-4000.0,0.00023,4]
[380967626,1755912866409,-500.0,0.00023013,2]
[380967627,1755912866419,-152.0,0.00023014,2]
[380967628,1755912866433,-194.72792766,0.00023014,2]
[380967629,1755912866443,-187.92333166,0.000231,2]
[380967630,1755912866453,-173.67,0.00023109,2]
[380967631,1755912866463,-222.0,0.0002319,2]
[380967632,1755912866475,-51062.58645427,0.000232,2]
[380967633,1755912866485,-1297.0,0.00023235,2]
[380967634,1755912866495,-599.0,0.00023235,2]
[380967635,1755912866505,-1657.0,0.00023235,2]
[380967636,1755912866515,-566.0,0.00023235,2]
[380967637,1755912866525,-150.0,0.00023245,2]
[380967638,1755912866535,-4153.0,0.00023245,2]
[380967639,1755912866544,-1255.0,0.00023245,2]
[380967640,1755912866554,-2030.0,0.00023245,2]
[380967641,1755912866564,-884.0,0.00023245,2]
[380967642,1755912866574,-6093.0,0.00023245,2]
[380967643,1755912866584,-600.0,0.0002326,2]
[380967644,1755912866595,-12717.38,0.00023278,2]
[380967645,1755912866605,-500.0,0.00023287,2]
[380967646,1755912866614,-608.0,0.00023288,7]
[380967647,1755912866633,-377.0,0.00023387,2]
[380967648,1755912866643,-5511.0,0.000234,5]
[380967649,1755912866654,-150.0,0.00023427,2]
[380967650,1755912866664,-150.0,0.00023427,2]
[380967651,1755912866674,-150.0,0.00023427,2]
[380967652,1755912866684,-150.0,0.00023427,2]
[380967653,1755912866693,-2400.0,0.00023466,2]
[380967654,1755912866703,-200.0,0.000235,2]
[380967655,1755912866713,-300.0,0.0002351,7]
[380967656,1755912866723,-500.0,0.00023561,2]
[380967657,1755912866733,-144943.02,0.00023562,7]
[380967658,1755912866742,-153.0,0.00023562,2]
[380967659,1755912866752,-201.93286099,0.00023562,2]
[380967660,1755912866762,-400.0,0.0002371,7]
[380967661,1755912866773,-1000.0,0.00023726,2]
[380967662,1755912866783,-11779.64900583,0.00023748,3]
[380967663,1755912866793,-5079.17887,0.0002375,30]
[380967664,1755912866803,-600.0,0.00023808,2]
[380967665,1755912866814,-373.07297731,0.00023825,2]
[380967666,1755912866825,-280.4,0.00023825,2]
[380967667,1755912866835,-320.74051982,0.00023825,2]
[380967668,1755912866846,-775.47832561,0.00023827,2]
[380967669,1755912866856,-500.0,0.00023835,2]
[380967670,1755912866866,-200.0,0.0002391,7]
[380967671,1755912866876,-844.18806451,0.00024,7]
[380967672,1755912866887,-844.18806451,0.00024,7]
[380967673,1755912866897,-17708.8,0.00024,2]
[380967674,1755912867045,-998.55492706,0.00024,2]
[380967675,1755912867055,-1420.61548952,0.00024,2]
[380967676,1755912867064,-253.15575976,0.00024,2]
[380967677,1755912867074,-44912.28072982,0.00024,2]
[380967678,1755912868158,-2500.0,0.00010941,2]
[380967679,1755912868168,-180.825234,0.00011,2]
[380967680,1755912868178,-151.0,0.00011,2]
[380967681,1755912868188,-400.0,0.00013698,2]
[380967682,1755912868198,-180.825234,0.00013698,2]
[380967683,1755912868208,-400.0,0.00013698,2]
[380967684,1755912868218,-400.0,0.00013698,2]
[380967685,1755912868228,-400.0,0.00013698,2]
[380967686,1755912868238,-400.0,0.00013698,2]
[380967687,1755912868247,-225.264005,0.00013698,2]
[380967688,1755912868257,-400.0,0.00013698,2]
[380967689,1755912868267,-400.0,0.00013698,2]
[380967690,1755912868277,-400.0,0.00013972,2]
[380967691,1755912868288,-400.0,0.00013972,2]
[380967692,1755912868298,-989.84,0.00013972,2]
[380967693,1755912868307,-400.0,0.00013972,2]
[380967694,1755912868317,-180.825234,0.00013972,2]
[380967695,1755912868328,-400.0,0.00013972,2]
[380967696,1755912868338,-400.0,0.00013972,2]
[380967697,1755912868349,-400.0,0.00013972,2]
[380967698,1755912868359,-400.0,0.00013972,2]
[380967699,1755912868369,-400.0,0.00014246,2]
[380967700,1755912868379,-400.0,0.00014246,2]
[380967701,1755912868388,-400.0,0.00014246,2]
[380967702,1755912868399,-989.84,0.00014246,2]
[380967703,1755912868408,-180.825234,0.00014246,2]
[380967704,1755912868418,-400.0,0.00014246,2]
[380967705,1755912868428,-400.0,0.00014246,2]
[380967706,1755912868440,-400.0,0.00014246,2]
[380967707,1755912868450,-400.0,0.00014246,2]
[380967708,1755912868459,-400.0,0.0001452,2]
[380967709,1755912868469,-400.0,0.0001452,2]
[380967710,1755912868481,-400.0,0.0001452,2]
[380967711,1755912868490,-400.0,0.0001452,2]
[380967712,1755912868500,-180.825234,0.0001452,2]
[380967713,1755912868510,-989.84,0.0001452,2]
[380967714,1755912868519,-400.0,0.0001452,2]
[380967715,1755912868529,-400.0,0.0001452,2]
[380967716,1755912868538,-400.0,0.0001452,2]
[380967717,1755912868548,-400.0,0.0001452,2]
[380967718,1755912868557,-400.0,0.00014794,2]
[380967719,1755912868567,-400.0,0.00014794,2]
[380967720,1755912868576,-400.0,0.00014794,2]
[380967721,1755912868586,-400.0,0.00014794,2]
[380967722,1755912868596,-155.62565909,0.00014794,2]
[380967723,1755912868606,-989.84,0.00014794,2]
[380967724,1755912868616,-400.0,0.00014794,2]
[380967725,1755912868625,-400.0,0.00015068,2]
[380967726,1755912868635,-400.0,0.00015068,2]
[380967727,1755912868644,-400.0,0.00015068,2]
[380967728,1755912868653,-400.0,0.00015068,2]
[380967729,1755912868662,-400.0,0.00015068,2]
[380967730,1755912868672,-400.0,0.00015068,2]
[380967731,1755912868681,-400.0,0.00015068,2]
[380967732,1755912868690,-400.0,0.00015342,2]
[380967733,1755912868699,-400.0,0.00015342,2]
[380967734,1755912868709,-400.0,0.00015342,2]
[380967735,1755912868718,-400.0,0.00015342,2]
[380967736,1755912868728,-400.0,0.00015342,2]
[380967737,1755912868737,-186.18490884,0.00015616,2]
[380967738,1755912868747,-400.0,0.00015616,2]
[380967739,1755912868757,-400.0,0.00015616,2]
[380967740,1755912868766,-400.0,0.00015616,2]
[380967741,1755912868776,-400.0,0.00015616,2]
[380967742,1755912868786,-277.90215355,0.00015616,2]
[380967743,1755912868795,-400.0,0.0001589,2]
[380967744,1755912868805,-400.0,0.0001589,2]
[380967745,1755912868814,-400.0,0.0001589,2]
[380967746,1755912868823,-400.0,0.0001589,2]
[380967747,1755912868833,-400.0,0.00016164,2]
[380967748,1755912868843,-436.075369,0.00016164,2]
[380967749,1755912868852,-400.0,0.00016164,2]
[380967750,1755912868862,-450.10929551,0.00016438,2]
[380967751,1755912868873,-1300.0,0.0001689,2]
[380967752,1755912868883,-600.29,0.00017534,2]
[380967753,1755912868893,-849.11,0.00017808,2]
[380967754,1755912868903,-600.29,0.00017808,2]
[380967755,1755912868912,-849.11,0.00018082,2]
[380967756,1755912868921,-600.29,0.00018082,2]
[380967757,1755912868930,-849.11,0.00018356,2]
[380967758,1755912868940,-600.29,0.00018356,2]
[380967759,1755912868950,-849.11,0.0001863,2]
[380967760,1755912868960,-600.29,0.0001863,2]
[380967761,1755912868969,-849.11,0.00018904,2]
[380967762,1755912868979,-600.29,0.00018904,2]
[380967763,1755912868988,-849.11,0.00019178,2]
[380967764,1755912868998,-600.29,0.00019178,2]
[380967765,1755912869007,-849.11,0.00019452,2]
[380967766,1755912869017,-600.29,0.00019452,2]
[380967767,1755912869027,-980.7,0.00019726,2]
[380967768,1755912869036,-849.11,0.00019726,2]
[380967769,1755912869046,-600.29,0.00019726,2]